Cogmind - Beta 17 @@@ ROGUE MODE // 2026.07.07 @ 14:18:02 Player: ldi (hl). (hl) Result: Self-destructed Performance ------------- Evolutions (2) 1000 Regions Visited (3) 600 Robots Destroyed (12) 60 Value Destroyed (312) 312 Prototype IDs (2) 40 Alien Tech Used (0) 0 Bonus (0) 0 TOTAL SCORE: 2012 Bonus ------- None Cogmind --------- Core Integrity 550/550 Matter 300/300 Energy 200/200 System Corruption 0% Temperature Cool (0) Movement Rolling (110) Ox2 Location -8/Materials Parts ------- > --- POWER (1) -------- Subdweller Power Source > --- PROPULSION (4) --- Light Treads Wheel > --- UTILITY (4) ------ Large Storage Unit Improved Targeting Computer > --- WEAPON (2) ------- Small Laser Beam Cannon > --- INVENTORY (15) --- Subdweller Monowheel Subdweller Monowheel Improved Heat Sink Large Battery (200) Scrap Shield Small Laser Small Laser Particle Gun Assault Rifle Subdweller Machine Gun Grenade Launcher Grenade Launcher Peak State ------------ > --- POWER ------------ Subdweller Power Source > --- PROPULSION ------- Light Treads Wheel > --- UTILITY ---------- Large Storage Unit Improved Targeting Computer > --- WEAPON ----------- Small Laser Beam Cannon > --- INVENTORY -------- Subdweller Monowheel Subdweller Monowheel Improved Heat Sink Large Battery Scrap Shield Small Laser Small Laser Particle Gun Assault Rifle Subdweller Machine Gun Grenade Launcher Grenade Launcher [Rating: 11] Favorites ----------- Power Light Ion Engine Engine Light Ion Engine Propulsion Light Treads Treads Light Treads Leg Aluminum Leg Wheel Wheel Utility Improved Targeting Computer Storage Large Storage Unit Processor Improved Targeting Computer Weapon Small Laser Energy Gun Small Laser Energy Cannon Beam Cannon Ballistic Gun Assault Rifle Launcher Grenade Launcher Build | -11 -10 -10 -8 ------- Run | Yrd Mat Sub Mat Slots Evolved 4 | . . . 4 Power . | . . . . Propulsion 2 | . . . 2 Utility 2 | . . . 2 Weapon . | . . . . Parts Attached 17 | 5 8 4 . Power 4 | 1 2 1 . Engine 4 | 1 2 1 . Core . | . . . . Reactor . | . . . . Propulsion 6 | 2 2 2 . Treads 3 | . 2 1 . Leg 2 | 2 . . . Wheel 1 | . . 1 . Hover . | . . . . Flight . | . . . . Utility 3 | . 3 . . Device . | . . . . Storage 1 | . 1 . . Processor 2 | . 2 . . Hackware . | . . . . Protection . | . . . . Artifact . | . . . . Weapon 4 | 2 1 1 . Energy Gun 1 | 1 . . . Energy Cannon 1 | . . 1 . Ballistic Gun 1 | 1 . . . Ballistic Cannon . | . . . . Launcher 1 | . 1 . . Special Weapon . | . . . . Impact Weapon . | . . . . Slashing Weapon . | . . . . Piercing Weapon . | . . . . Special Melee Weapon . | . . . . Unidentified Prototypes . | . . . . Parts Lost 5 | . 1 4 . Power 1 | . . 1 . Propulsion 3 | . 1 2 . Utility . | . . . . Weapon 1 | . . 1 . Highest Loss Streak 3 | . 1 3 . To Critical Strikes . | . . . . Average Backups 6 | . 5 10 12 Power . | . . . . Propulsion 1 | . 1 1 2 Utility . | . . 2 3 Weapon 4 | . 3 6 7 Tool/Special . | . . . . Unused Backups 6 | . . . 6 Power . | . . . . Propulsion . | . . . . Utility 2 | . . . 2 Weapon 4 | . . . 4 Tool/Special . | . . . . Average Slot Usage (%) 95 | . 95 99 63 Engine 12 | . 11 13 9 Treads 17 | . 14 25 9 Leg 9 | . 12 . . Storage 12 | . 11 14 9 Processor 14 | . 14 14 9 Energy Gun 13 | . 14 14 9 Ballistic Gun 12 | . 13 10 . Peak Build Rating 11 | 5 9 11 11 Average Rating 8 | 4 7 9 11 On Entrance 6 | . 5 9 11 Avg Prop Armor Cover (%) 14 | . . 14 14 Naked Turns . | . . . . Heaviest Build 29 | 6 26 29 29 Greatest Support 40 | 20 40 40 10 Greatest Overweight (x) 2 | . 2 2 2 Average Overweight (x) . | . . . 2 Largest Inventory Capacity 15 | 5 15 15 15 Average Capacity 13 | 5 13 15 15 Most Carried 13 | 1 11 13 13 Average Carried 6 | . 5 10 13 Final Capacity 15 | 5 15 15 15 Final Carried 13 | 1 11 13 13 Class Distribution -------------------- 100% | Mutant Dominant Class ---------------- Mutant | -10/Materials Mutant | -10/Subcaves Mutant | -8/Materials Resources | -11 -10 -10 -8 ----------- Run | Yrd Mat Sub Mat Matter Collected 504 | 214 157 133 . Remotely . | . . . . Salvage Created 320 | . 158 162 . Parts 24 | . 19 5 . Haulers Intercepted 2 | . 2 . . Recyclers Shooed . | . . . . Parts Field Recycled . | . . . . Retrieved Matter . | . . . . Parts Self-Destructed 4 | . . 4 . Prevented . | . . . . Parts Restored . | . . . . Kills | -11 -10 -10 -8 ------- Run | Yrd Mat Sub Mat Combat Hostiles Destroyed 9 | . 6 3 . Guns 4 | . 2 2 . Cannons 1 | . . 1 . AOE 4 | . 4 . . Classes Destroyed 5 | . 4 1 . Tunneler 1 | . 1 . . Hauler 2 | . 2 . . Swarmer 4 | . 4 . . Grunt 2 | . 2 . . Subdweller 3 | . . 3 . Best Kill Streak 5 | . 5 2 . Combat Bots Only 4 | . 4 2 . Max Kills in Single Turn 3 | . 3 1 . Gunslinging . | . . . . Exploded 2 | . 2 . . Melee . | . . . . Uniques/NPCs Destroyed . | . . . . Combat | -11 -10 -10 -8 -------- Run | Yrd Mat Sub Mat Hostile Shots Fired 65 | . 36 29 . Missed 18 | . 10 8 . Hits 47 | . 26 21 . Projectile 47 | . 26 21 . Critical Strikes 1 | . . 1 . Damage Taken 1012 | . 563 449 . Core 194 | . 109 85 . Absorbed by Shields . | . . . . Core Remaining (%) 61 | 100 . 22 . Volleys Fired 39 | . 20 19 . Largest 2 | . 2 2 . Hottest 100 | . 70 100 . Shots Fired 78 | . 40 38 . Gun 62 | . 37 25 . Cannon 13 | . . 13 . Launcher 3 | . 3 . . Special . | . . . . Kinetic 23 | . 17 6 . Thermal 52 | . 20 32 . Explosive 3 | . 3 . . Electromagnetic . | . . . . Robot Hit Streak 22 | . 8 22 . Robot Miss Streak 3 | . 3 1 . Penetration Max . | . . . . Secondary Targets . | . . . . Shots Hit Robots 61 | . 28 33 . Core Hits 20 | . 12 8 . Critical Kills . | . . . . Critical Parts Destroyed . | . . . . Critical Strikes . | . . . . Melee Attacks . | . . . . Impact . | . . . . Slashing . | . . . . Piercing . | . . . . Sneak Attacks . | . . . . Combat Hostiles . | . . . . Follow-up Attacks . | . . . . Damage Inflicted 1281 | . 835 446 . Guns 536 | . 301 235 . Cannons 211 | . . 211 . Explosions 534 | . 534 . . Melee . | . . . . Ramming . | . . . . Kinetic 214 | . 151 63 . Thermal 759 | . 376 383 . Explosive 308 | . 308 . . Electromagnetic . | . . . . Impact . | . . . . Slashing . | . . . . Piercing . | . . . . Highest Corruption . | . . . . Average Corruption . | . . . . Corruption Purged . | . . . . Corruption Blocked . | . . . . Overload Shots . | . . . . Overflow Damage 66 | . 66 . . Projectiles . | . . . . Explosions 66 | . 66 . . Melee . | . . . . Knockbacks . | . . . . Impact . | . . . . Kinetic . | . . . . Secondary . | . . . . Self-Inflicted Damage 264 | . 264 . . Shots 4 | . 4 . . Rammed . | . . . . Targets Rammed . | . . . . Kicked . | . . . . Crushed . | . . . . Highest Temperature 78 | . 78 . . Average Temperature 48 | . 48 . . Received Heat Transfer 162 | . 120 42 . Siege Activations . | . . . . Martial Activations . | . . . . Shielding Activations . | . . . . Robots Disrupted . | . . . . Combat Hostiles . | . . . . Robots Corrupted . | . . . . Combat Hostiles . | . . . . Parts Fried . | . . . . Impact Corruptions . | . . . . Robots Melted . | . . . . Combat Hostiles . | . . . . Parts Melted 1 | . . 1 . Heat Transferred 1344 | . 500 844 . Parts Sabotaged . | . . . . Parts Stolen . | . . . . Parts Stripped . | . . . . Power Chain Reactions . | . . . . Alert | -11 -10 -10 -8 ------- Run | Yrd Mat Sub Mat Maximum Alert Level . | . . . . Low Security (%) 100 | 100 100 . 100 Level 1 . | . . . . Level 2 . | . . . . Level 3 . | . . . . Level 4 . | . . . . Level 5 . | . . . . High Security . | . . . . Max Security . | . . . . Peak Influence 192 | . 192 . . Initial . | . . . . Average 64 | . 68 . . Influence Increases 335 | . 335 . . Destroy 0b10 Robot/C 120 | . 120 . . Destroy 0b10 Robot/NC 15 | . 15 . . Destroy Leader 34 | . 34 . . Successful Hack 11 | . 11 . . Disable Machine 90 | . 90 . . Destroy Structure 65 | . 65 . . Influence Decreases 335 | . 297 38 . Entered New Map 19 | . . 19 . Time Decay 306 | . 287 19 . Lost Part 10 | . 10 . . Squads Dispatched . | . . . . Investigation . | . . . . Extermination . | . . . . Reinforcement . | . . . . Assault . | . . . . Garrison . | . . . . Intercept . | . . . . Searches Triggered . | . . . . Construction Impeded . | . . . . Haulers Reinforced . | . . . . Active Scanning Responses . | . . . . Cargo Convoy Interrupts . | . . . . Stealth | -11 -10 -10 -8 --------- Run | Yrd Mat Sub Mat Distress Signals 1 | . 1 . . Communications Jammed . | . . . . Distress Signals . | . . . . Times Spotted 19 | . 15 4 . Peak Tracking Total 5 | . 5 2 . Tactical Retreats . | . . . . Traps | -11 -10 -10 -8 ------- Run | Yrd Mat Sub Mat Traps Triggered 3 | . 3 . . Indirectly . | . . . . Trap Hack Attempts . | . . . . Triggered . | . . . . Disarmed . | . . . . Reprogrammed . | . . . . Reused . | . . . . Traps Extracted . | . . . . Installed . | . . . . Triggered . | . . . . Machines | -11 -10 -10 -8 ---------- Run | Yrd Mat Sub Mat Machines Disabled 6 | . 6 . . Max in Single Turn 3 | . 3 . . Machines Repaired . | . . . . Machines Dismantled . | . . . . Machines Sabotaged . | . . . . Overloaded Fab Kills . | . . . . Hacking | -11 -10 -10 -8 --------- Run | Yrd Mat Sub Mat Machines Accessed 7 | . 5 2 . Terminals 5 | . 5 . . Fabricators . | . . . . Repair Stations . | . . . . Recycling Units . | . . . . Scanalyzers . | . . . . Garrison Access . | . . . . Total Hacks 18 | . 15 3 . Successful 6 | . 3 3 . Failed 11 | . 11 . . Catastrophic 2 | . 2 . . Database Lockouts 1 | . 1 . . Manual 11 | . 11 . . Terminals 15 | . 15 . . Fabricators . | . . . . Repair Stations . | . . . . Recycling Units . | . . . . Scanalyzers . | . . . . Garrison Access . | . . . . Terminal Hacks 6 | . 3 3 . Record 1 | . . 1 . Robot Analysis 2 | . 2 . . Prototype ID Bank 1 | . 1 . . Open Door 1 | . . 1 . Release Object 1 | . . 1 . Fabricator Hacks . | . . . . Repair Station Hacks . | . . . . Recycling Unit Hacks . | . . . . Scanalyzer . | . . . . Garrison Access Hacks . | . . . . Unauthorized Hacks . | . . . . Terminals . | . . . . Fabricators . | . . . . Repair Stations . | . . . . Recycling Units . | . . . . Scanalyzers . | . . . . Garrison Access . | . . . . Data Cores Recovered . | . . . . Used . | . . . . Hacking Detections 5 | . 5 . . Full Trace Events 3 | . 3 . . Feedback Events . | . . . . Feedback Blocked . | . . . . Robot Schematics Acquired . | . . . . Robots Built . | . . . . Authchips . | . . . . Time . | . . . . Total Robot Build Rating . | . . . . Part Schematics Acquired . | . . . . Parts Built . | . . . . Authchips . | . . . . Time . | . . . . Total Part Build Rating . | . . . . Part Studies Acquired . | . . . . Parts Repaired . | . . . . Time . | . . . . Parts Recycled . | . . . . Recycled Matter . | . . . . Retrieved Matter . | . . . . Retrieved Components . | . . . . Parts Scanalyzed . | . . . . Part Schematics Acquired . | . . . . Parts Damaged . | . . . . Bothacking | -11 -10 -10 -8 ------------ Run | Yrd Mat Sub Mat Used RIF Installer . | . . . . Robots Hacked . | . . . . Non-combat . | . . . . Combat . | . . . . Robot Hacks Applied . | . . . . Relay Couplers Released . | . . . . Fabnet Peak Effective % . | . . . . Robots Rewired . | . . . . Allies Hacked . | . . . . Hacks Repelled . | . . . . Allies | -11 -10 -10 -8 -------- Run | Yrd Mat Sub Mat Total Allies . | . . . . Largest Group . | . . . . Highest-Rated Group . | . . . . Highest-Rated Ally . | . . . . Total Orders . | . . . . Ally Attacks . | . . . . Total Damage . | . . . . Kills . | . . . . Allies Corrupted . | . . . . Allies Melted . | . . . . Intel | -11 -10 -10 -8 ------- Run | Yrd Mat Sub Mat Active Infowar (turns) . | . . . . Robot Analysis Total 2 | . 2 . . Derelict Logs Recovered . | . . . . Drone Launches . | . . . . Drone Recoveries . | . . . . Exploration | -11 -10 -10 -8 ------------- Run | Yrd Mat Sub Mat Turns Passed 1399 | 61 987 345 6 Spaces Moved 784 | 47 549 183 5 Core 4 | 4 . . . Treads 454 | . 302 152 . Legs 290 | 43 247 . . Wheels 36 | . . 31 5 Hover . | . . . . Flight . | . . . . Fastest Speed 50 | 50 120 110 110 Average Speed 156 | 114 162 151 110 Slowest Speed 260 | 120 260 160 110 Overloaded Moves . | . . . . Propulsion Burnouts . | . . . . Robots Hopped . | . . . . Potential Cave-ins . | . . . . Cave-ins Triggered . | . . . . Exploration Rate (%) 24 | 3 80 12 2 Regions Visited 3 Branch Regions 1 Pre-discovered Areas . | . . . . Known Exits Taken . | . . . . Unknown Exits Taken 3 | 1 1 1 . Scrap Searched . | . . . . Spaces Dug . | . . . . Terrain Destroyed 73 | . 73 . . Melee . | . . . . Projectile . | . . . . AOE 73 | . 73 . . Terrain Rammed . | . . . . Walls Destroyed . | . . . . Machines Disabled . | . . . . Actions | -11 -10 -10 -8 --------- Run | Yrd Mat Sub Mat Total 871 | 52 602 212 5 Wait 6 | . 4 2 . Move 781 | 46 548 182 5 Hop . | . . . . Pick Up 17 | 1 12 4 . Fast Attach 15 | 5 9 1 . Attach 5 | . 2 3 . Detach 2 | . 2 . . Swap 3 | . 3 . . Drop 2 | . 2 . . Fire 39 | . 20 19 . Melee . | . . . . Ram . | . . . . Kick . | . . . . Crush . | . . . . Escape Stasis . | . . . . Rewire . | . . . . Trap . | . . . . Miscellaneous 1 | . . 1 . Route ------- -11/Scrapyard -10/Materials (discovered 3 exits: [*Mat x2] / *Sub) -10/Subcaves -8/Materials History --------- Turn | Location | Event 3 | -11/Scrapyard | Discovered new exit (range 16) 62 | -11/Scrapyard | Entered Materials 368 | -10/Materials | Build established: Mutant 451 | -10/Materials | Discovered new exit (range 12) 631 | -10/Materials | Central database locked down 644 | -10/Materials | Discovered new exit (range 15) 971 | -10/Materials | Discovered new exit (range 9) 1049 | -10/Materials | Entered Subcaves 1050 | -10/Subcaves | Approached by a straggling Scientist 1145 | -10/Subcaves | Released subatomizers from SUBCON Basin 1308 | -10/Subcaves | Core integrity fell below 50% 1370 | -10/Subcaves | Lost 3 parts (2n1w) 1383 | -10/Subcaves | Discovered new exit (range 7) 1394 | -10/Subcaves | Entered Materials 1394 | -8/Materials | Evolved 4 slots: Propulsion x2, Utility x2 1400 | -8/Materials | Self-destructed Last Messages --------------- 01324_ Subatomizers dissect the Sub. Monowheel. 01324_ 95-6NF(R) affixes Scrap Shield Fragment to Scrap Shield. 01337_ Subatomizers dissect the Sub. Monowheel. 01339_ Lgt. Treads destroyed. 01341_ 95-6NF(R) destroyed. 01354_ Sub. Power Source melted. 01354_ XZ-IM2(R) destroyed. 2X-Y2F(c): "I think it's somewhere southeast of here" 01358_ Acquired 84 matter. 01360_ Acquired Sub. Machine Gun. 01362_ Subatomizers dissect the Sub. Monowheel. 01365_ Acquired Scrap Shield. 01372_ Acquired Sub. Monowheel. 01373_ Subatomizers dissect the Disposable Heat Sink. 01376_ Acquired Sub. Monowheel. 01383_ EXIT=FOUND 01384_ Subatomizers dissect the Disposable Heat Sink. PARAMETERS=PROPULSION+2,UTILITY+2 LOCATION=UNKNOWN GOAL=ESCAPE Map ----- +----------------------------------------------------+ | ????????????????????????????????????? | | ????????????????????????????????????? | | ????????????????????????????????????? | | ????????????????????????????????????? | | ????????????????????????????????????? | | ????????????????????????????????????? | | ????????????????????????????????????? | | ????????????????????????????????????? | | ????????????????????????????????????? | | ????????????????????????????????????? | | ????????????????????????????????????? | | ????????????????????????????????????? | | ????????????????????????????????????? | | ????????????????????????????????????? | | ????????????????????????????????????? | | ????????????????????????????????????? | | ??????????##+#??????????????????????? | | ?????????? ??????????????????????? | | ??????????? ??????????????????????? | | ??????????? " ??????????????????????? | | ??????????? ??????????????????????? | | ??????????? ??????????????????????? | | ?#########?# #??????????????????????? | | ?#! "T"?# #??????????????????????? | | ?# ! # ###????????????????????? | | ?# [ #@ #????????????????????? | | ?# + #????????????????????? | | ?? """ """ # #????????????????????? | | ????"" """ # #????????????????????? | | ?????" """?# #????????????????????? | | ????? ?# #????????????????????? | | ?????####??# #????????????????????? | | ???????????#####????????????????????? | | ????????????????????????????????????? | | ????????????????????????????????????? | | ????????????????????????????????????? | | ????????????????????????????????????? | | ????????????????????????????????????? | | ????????????????????????????????????? | | ????????????????????????????????????? | | ????????????????????????????????????? | | ????????????????????????????????????? | | ????????????????????????????????????? | | ????????????????????????????????????? | | ????????????????????????????????????? | | ????????????????????????????????????? | | ????????????????????????????????????? | | ????????????????????????????????????? | | ????????????????????????????????????? | | ????????????????????????????????????? | +----------------------------------------------------+ Best States ------------- Heat Dissipation 31 Energy Generation 15 Energy Capacity 250 Matter Stores 300 Matter Capacity 300 Sight Range 16 Terrain Scan Density 10 Evasion (%) 55 Targeting Accuracy 12 Recoil Reduction 2 Item Schematics ----------------- None Robot Schematics ------------------ None Fabricated ------------ Nothing Repaired ---------- Nothing Studied --------- None Alien Tech Used ----------------- None Achievements -------------- None Challenges ------------ None Game ------ Seed ArmorZhirovDoomcannon Manual? 0 Play Time 00:06:51 Cumulative 662.9 hours Start 2026.07.07 @ 14:10:39 End 2026.07.07 @ 14:18:02 Sessions 1 Manual Loads 0 Difficulty Rogue Special Mode None Game No. 438 Rogue 438 Adventurer 0 Explorer 0 Win Type - Total 38 Types 25/1/6/6/0/0/0/0/0/0 Lore% 72 Gallery% 69 Achievement% 52 Wizard Run 0 Options --------- Layout 0 ASCII 1 Keyboard 0 Movement Numpad Keybinds 0 Fullscreen 2 Font 24/Smallcaps Map View 76x50 Zoom Use 0% Tactical HUD 1 Map Filters NONE Filters NONE Steam 1 RUN: f5334a48-368d-4d21-9660-6b27c866473e